fUST/lending_fUST_20250802
["ID","MTS","AMOUNT","RATE_DAILY","PERIOD"]
[376851089,1754140257257,-552.75,0.00026849,10]
[376851090,1754140257267,-460.0,0.00026849,10]
[376851091,1754140257276,-803.96,0.00026849,10]
[376851092,1754140257286,-460.0,0.00026849,10]
[376851093,1754140257295,-552.75,0.00026849,10]
[376851094,1754140257305,-460.0,0.00026849,10]
[376851095,1754140257315,-803.96,0.00026849,10]
[376851096,1754140257324,-1770.6238975,0.00026849,10]
[376851097,1754140257334,-552.75,0.00026849,10]
[376851098,1754140257343,-358.08,0.00026849,10]
[376851099,1754140257352,-460.0,0.00026849,10]
[376851100,1754140257361,-552.75,0.00026849,10]
[376851101,1754140257370,-803.96,0.00026849,10]
[376851102,1754140257379,-803.96,0.00026849,10]
[376851103,1754140257388,-552.75,0.00026849,10]
[376851104,1754140257400,-803.96,0.00026849,10]
[376851105,1754140257410,-552.75,0.00026849,10]
[376851106,1754140257419,-803.96,0.00026849,10]
[376851107,1754140257429,-552.75,0.00026849,10]
[376851108,1754140257439,-804.08495824,0.00026849,10]
[376851109,1754140257448,-552.75,0.00026849,10]
[376851110,1754140257458,-552.75,0.00026849,10]
[376851111,1754140257467,-465.17695665,0.00026849,10]
[376851112,1754140257477,-552.9,0.00026849,10]
[376851113,1754140257486,-460.0,0.00026849,10]
[376851114,1754140257495,-460.0,0.00026849,10]
[376851115,1754140257506,-460.0,0.00026849,10]
[376851116,1754140257515,-460.0,0.00026849,10]
[376851117,1754140257524,-460.0,0.00026849,10]
[376851118,1754140257533,-460.0,0.00026849,10]
[376851119,1754140257542,-460.0,0.00026849,10]
[376851120,1754140257552,-460.0,0.00026849,10]
[376851121,1754140257561,-460.0,0.00026849,10]
[376851122,1754140257571,-460.0,0.00026849,10]
[376851123,1754140257580,-460.0,0.00026849,10]
[376851124,1754140257590,-460.0,0.00026849,10]
[376851125,1754140257599,-460.0,0.00026849,10]
[376851126,1754140257608,-460.0,0.00026849,10]
[376851127,1754140257618,-460.0,0.00026849,10]
[376851128,1754140257627,-461.44497412,0.00026849,10]
[376851129,1754140257636,-460.25664646,0.00026849,10]
[376851130,1754140257649,-460.0,0.00026849,10]
[376851131,1754140257658,-460.0,0.00026849,10]
[376851132,1754140257667,-460.0,0.00026849,10]
[376851133,1754140257677,-477.91237632,0.00026849,10]
[376851134,1754140257686,-463.82105709,0.00026849,10]
[376851135,1754140257696,-460.0,0.00026849,10]
[376851136,1754140257706,-460.0,0.00026849,10]
[376851137,1754140257715,-460.0,0.00026849,10]
[376851138,1754140257726,-460.0,0.00026849,10]
[376851139,1754140257735,-460.0,0.00026849,10]
[376851140,1754140257744,-460.0,0.00026849,10]
[376851141,1754140257753,-460.0,0.00026849,10]
[376851142,1754140257763,-460.0,0.00026849,10]
[376851143,1754140257773,-460.0,0.00026849,10]
[376851144,1754140257782,-332.89,0.00026849,10]
[376851145,1754140257791,-460.0,0.00026849,10]
[376851146,1754140257800,-460.0,0.00026849,10]
[376851147,1754140257810,-460.0,0.00026849,10]
[376851148,1754140257819,-460.0,0.00026849,10]
[376851149,1754140257828,-460.0,0.00026849,10]
[376851150,1754140257838,-460.0,0.00026849,10]
[376851151,1754140257847,-460.0,0.00026849,10]
[376851152,1754140257856,-460.0,0.00026849,10]
[376851153,1754140257866,-460.0,0.00026849,10]
[376851154,1754140257875,-460.0,0.00026849,10]
[376851155,1754140257885,-460.0,0.00026849,10]
[376851156,1754140257896,-460.0,0.00026849,10]
[376851157,1754140257906,-460.0,0.00026849,10]
[376851158,1754140257916,-460.0,0.00026849,10]
[376851159,1754140257925,-460.0,0.00026849,10]
[376851160,1754140257935,-460.0,0.00026849,10]
[376851161,1754140257945,-460.0,0.00026849,10]
[376851162,1754140257954,-460.0,0.00026849,10]
[376851163,1754140257964,-460.0,0.00026849,10]
[376851164,1754140257974,-460.0,0.00026849,10]
[376851165,1754140257983,-460.0,0.00026849,10]
[376851166,1754140257993,-460.0,0.00026849,10]
[376851167,1754140258003,-460.0,0.00026849,10]
[376851168,1754140258012,-460.0,0.00026849,10]
[376851169,1754140258022,-460.0,0.00026849,10]
[376851170,1754140258032,-460.0,0.00026849,10]
[376851171,1754140258043,-460.0,0.00026849,10]
[376851172,1754140258054,-460.0,0.00026849,10]
[376851173,1754140258063,-537.01185755,0.00026849,10]
[376851174,1754140258073,-460.0,0.00026849,10]
[376851175,1754140258082,-460.0,0.00026849,10]
[376851176,1754140258092,-460.0,0.00026849,10]
[376851177,1754140258102,-460.0,0.00026849,10]
[376851178,1754140258111,-243.17367037,0.00026849,10]
[376851179,1754140258120,-460.0,0.00026849,10]
[376851180,1754140258131,-460.0,0.00026849,10]
[376851181,1754140258141,-460.0,0.00026849,10]
[376851182,1754140258151,-460.0,0.00026849,10]
[376851183,1754140258160,-488.3,0.00026849,10]
[376851184,1754140258170,-460.0,0.00026849,10]
[376851185,1754140258179,-460.0,0.00026849,10]
[376851186,1754140258189,-460.0,0.00026849,10]
[376851187,1754140258199,-460.0,0.00026849,10]
[376851188,1754140258208,-460.0,0.00026849,10]
[376851189,1754140258217,-460.0,0.00026849,10]
[376851190,1754140258227,-460.0,0.00026849,10]
[376851191,1754140258239,-460.0,0.00026849,10]
[376851192,1754140258249,-460.0,0.00026849,10]
[376851193,1754140258258,-460.0,0.00026849,10]
[376851194,1754140258267,-460.0,0.00026849,10]
[376851195,1754140258276,-460.0,0.00026849,10]
[376851196,1754140258286,-460.0,0.00026849,10]
[376851197,1754140258295,-460.0,0.00026849,10]
[376851198,1754140258304,-460.0,0.00026849,10]
[376851199,1754140258313,-460.0,0.00026849,10]
[376851200,1754140258323,-460.0,0.00026849,10]
[376851201,1754140258331,-460.0,0.00026849,10]
[376851202,1754140258341,-460.0,0.00026849,10]
[376851203,1754140258350,-460.0,0.00026849,10]
[376851204,1754140258359,-460.0,0.00026849,10]
[376851205,1754140258368,-460.0,0.00026849,10]
[376851206,1754140258377,-460.0,0.00026849,10]
[376851207,1754140258387,-460.0,0.00026849,10]
[376851208,1754140258398,-599.42932843,0.00026849,10]
[376851209,1754140258408,-493.22,0.00026849,10]
[376851210,1754140258418,-460.0,0.00026849,10]
[376851211,1754140258429,-460.0,0.00026849,10]
[376851212,1754140258438,-1312.87,0.00026849,10]
[376851213,1754140258448,-460.0,0.00026849,10]
[376851214,1754140258457,-460.0,0.00026849,10]
[376851215,1754140258466,-387.89585856,0.00026849,10]
[376851216,1754140258476,-207.06461992,0.00026849,10]
[376851217,1754140258485,-460.0,0.00026849,10]
[376851218,1754140258495,-460.0,0.00026849,10]
[376851219,1754140258504,-460.0,0.00026849,10]
[376851220,1754140258514,-1312.87,0.00026849,10]
[376851221,1754140258523,-1312.87,0.00026849,10]
[376851222,1754140258532,-1312.87,0.00026849,10]
[376851223,1754140258542,-460.0,0.00026849,10]
[376851224,1754140258552,-460.0,0.00026849,10]
[376851225,1754140258561,-460.0,0.00026849,10]
[376851226,1754140258571,-279.98232872,0.00026849,10]
[376851227,1754140258580,-1312.87,0.00026849,10]
[376851228,1754140258590,-1312.87,0.00026849,10]
[376851229,1754140258600,-460.0,0.00026849,10]
[376851230,1754140258609,-1312.87,0.00026849,10]
[376851231,1754140258619,-460.0,0.00026849,10]
[376851232,1754140258628,-819.9001011,0.00026849,10]
[376851233,1754140258650,-492.9698989,0.00026849,10]
[376851234,1754140258660,-1312.87,0.00026849,10]
[376851235,1754140258670,-500.43,0.00026849,10]
[376851236,1754140258679,-1312.87,0.00026849,10]
[376851237,1754140258690,-500.43,0.00026849,10]
[376851238,1754140258699,-500.43,0.00026849,10]
[376851239,1754140258709,-1312.87,0.00026849,10]
[376851240,1754140258719,-500.43,0.00026849,10]
[376851241,1754140258730,-1312.87,0.00026849,10]
[376851242,1754140258739,-500.43,0.00026849,10]
[376851243,1754140258748,-500.43,0.00026849,10]
[376851244,1754140258758,-1312.87,0.00026849,10]
[376851245,1754140258768,-500.43,0.00026849,10]
[376851246,1754140258777,-1312.87,0.00026849,10]
[376851247,1754140258787,-500.43,0.00026849,10]
[376851248,1754140258796,-500.43,0.00026849,10]
[376851249,1754140258806,-1312.87,0.00026849,10]
[376851250,1754140258815,-462.35745088,0.00026849,10]
[376851251,1754140258825,-1312.87,0.00026849,10]
[376851252,1754140258835,-151.0,0.00026849,7]
[376851253,1754140258844,-1312.87,0.00026849,10]
[376851254,1754140258853,-1312.87,0.00026849,10]
[376851255,1754140258863,-1312.87,0.00026849,10]
[376851256,1754140258873,-500.43,0.00026849,10]
[376851257,1754140258882,-460.0,0.00026849,10]
[376851258,1754140258891,-1312.87,0.00026849,10]
[376851259,1754140258902,-500.43,0.00026849,10]
[376851260,1754140258912,-460.0,0.00026849,10]
[376851261,1754140258921,-500.43,0.00026849,10]
[376851262,1754140258931,-1312.87,0.00026849,10]
[376851263,1754140258941,-460.0,0.00026849,10]
[376851264,1754140258950,-336.18,0.00026849,10]
[376851265,1754140258960,-500.43,0.00026849,10]
[376851266,1754140258970,-1312.87,0.00026849,10]
[376851267,1754140258979,-486.32716663,0.00026849,10]
[376851268,1754140258995,-14.10283337,0.00026849,10]
[376851269,1754140259004,-500.43,0.00026849,10]
[376851270,1754140259014,-1312.87,0.00026849,10]
[376851271,1754140259024,-500.43,0.00026849,10]
[376851272,1754140259033,-500.43,0.00026849,10]
[376851273,1754140259043,-500.43,0.00026849,10]
[376851274,1754140259052,-1313.0195233,0.00026849,10]
[376851275,1754140259062,-500.43,0.00026849,10]
[376851276,1754140259072,-500.43,0.00026849,10]
[376851277,1754140259082,-825.25,0.00026849,10]
[376851278,1754140259093,-500.43,0.00026849,10]
[376851279,1754140259103,-825.25,0.00026849,10]
[376851280,1754140259112,-500.43,0.00026849,10]
[376851281,1754140259121,-825.25,0.00026849,10]
[376851282,1754140259131,-460.0,0.00026849,10]
[376851283,1754140259141,-599.6542981,0.00026849,10]
[376851284,1754140259157,-225.5957019,0.00026849,10]
[376851285,1754140259167,-500.43,0.00026849,10]
[376851286,1754140259177,-460.0,0.00026849,10]
[376851287,1754140259187,-825.25,0.00026849,10]
[376851288,1754140259197,-460.0,0.00026849,10]
[376851289,1754140259206,-825.25,0.00026849,10]
[376851290,1754140259216,-151.0,0.00026849,7]
[376851291,1754140259226,-151.0,0.00026849,7]
[376851292,1754140259235,-825.25,0.00026849,10]
[376851293,1754140259245,-825.25,0.00026849,10]
[376851294,1754140259255,-58.01946093,0.00026849,10]
[376851295,1754140259536,-767.23053907,0.00026849,10]
[376851296,1754140259546,-460.0,0.00026849,10]
[376851297,1754140259555,-825.25,0.00026849,10]
[376851298,1754140259565,-107.51946093,0.00026849,10]
[376851299,1754140259576,-717.73053907,0.00026849,10]
[376851300,1754140259586,-825.25,0.00026849,10]
[376851301,1754140259595,-825.25,0.00026849,10]
[376851302,1754140259605,-500.48,0.00026849,10]
[376851303,1754140259614,-825.25,0.00026849,10]
[376851304,1754140259623,-460.0,0.00026849,10]
[376851305,1754140259632,-825.25,0.00026849,10]
[376851306,1754140259642,-825.25,0.00026849,10]
[376851307,1754140259656,-825.25,0.00026849,10]
[376851308,1754140259666,-825.25,0.00026849,10]
[376851309,1754140259677,-825.25,0.00026849,10]
[376851310,1754140259686,-825.25,0.00026849,10]
[376851311,1754140259697,-825.25,0.00026849,10]
[376851312,1754140259707,-825.25,0.00026849,10]
[376851313,1754140259717,-825.25,0.00026849,10]
[376851314,1754140259726,-825.39,0.00026849,10]
[376851315,1754140259737,-151.0,0.00026849,7]
[376851316,1754140259747,-460.0,0.00026849,10]
[376851317,1754140259756,-460.0,0.00026849,10]
[376851318,1754140259765,-460.0,0.00026849,10]
[376851319,1754140259775,-151.0,0.00026849,7]
[376851320,1754140259784,-151.420775,0.00026849,7]
[376851321,1754140259793,-460.0,0.00026849,10]
[376851322,1754140259804,-460.0,0.00026849,10]
[376851323,1754140259814,-460.0,0.00026849,10]
[376851324,1754140259823,-460.0,0.00026849,10]
[376851325,1754140259832,-460.0,0.00026849,10]
[376851326,1754140259841,-460.0,0.00026849,10]
[376851327,1754140259851,-460.0,0.00026849,10]
[376851328,1754140259860,-460.0,0.00026849,10]
[376851329,1754140259870,-460.0,0.00026849,10]
[376851330,1754140259880,-460.0,0.00026849,10]
[376851331,1754140259889,-460.0,0.00026849,10]
[376851332,1754140259899,-460.0,0.00026849,10]
[376851333,1754140259909,-460.0,0.00026849,10]
[376851334,1754140259919,-460.0,0.00026849,10]
[376851335,1754140259929,-460.0,0.00026849,10]
[376851336,1754140259939,-460.0,0.00026849,10]
[376851337,1754140259948,-460.0,0.00026849,10]
[376851338,1754140259957,-460.0,0.00026849,10]
[376851339,1754140259967,-460.0,0.00026849,10]
[376851340,1754140259976,-460.0,0.00026849,10]
[376851341,1754140259985,-460.0,0.00026849,10]
[376851342,1754140259995,-460.0,0.00026849,10]
[376851343,1754140260004,-460.0,0.00026849,10]
[376851344,1754140260013,-460.0,0.00026849,10]
[376851345,1754140260025,-460.0,0.00026849,10]
[376851346,1754140260035,-460.0,0.00026849,10]
[376851347,1754140260045,-460.0,0.00026849,10]
[376851348,1754140260054,-460.0,0.00026849,10]
[376851349,1754140260064,-460.0,0.00026849,10]
[376851350,1754140260073,-460.0,0.00026849,10]
[376851351,1754140260083,-460.0,0.00026849,10]
[376851352,1754140260092,-460.0,0.00026849,10]
[376851353,1754140260101,-460.0,0.00026849,10]
[376851354,1754140260113,-460.0,0.00026849,10]
[376851355,1754140260123,-463.57266305,0.00026849,10]
[376851356,1754140260142,-460.0,0.00026849,10]
[376851357,1754140260156,-456.61297936,0.00026849,10]
[376851358,1754140260183,-3.38702064,0.00026849,10]
[376851359,1754140260193,-461.45504877,0.00026849,10]
[376851360,1754140260202,-462.24178609,0.00026849,10]
[376851361,1754140260211,-3326.08508883,0.00026869,2]
[376851362,1754140260223,-257.48197783,0.00026869,2]
[376851363,1754140260231,-422.55322239,0.00026869,2]
[376851364,1754140260240,-756.20818096,0.00026869,2]
[376851365,1754140260252,-5557.87533132,0.00026869,2]
[376851366,1754140260261,-1688.52267667,0.00026869,2]
[376851367,1754140260270,-648.27074104,0.00026869,2]
[376851368,1754140260279,-224.89368933,0.00026869,2]
[376851369,1754140260289,-228.7954114,0.00026873,2]
[376851370,1754140260298,-333.05292304,0.00026873,2]
[376851371,1754140260308,-502.53665721,0.00026873,2]
[376851372,1754140260317,-500.0,0.00026873,2]
[376851373,1754140260326,-500.0,0.00026873,2]
[376851374,1754140260335,-500.0,0.00026873,2]
[376851375,1754140260344,-500.0,0.00026873,2]
[376851376,1754140260353,-500.0,0.00026873,2]
[376851377,1754140260363,-500.0,0.00026873,2]
[376851378,1754140260372,-500.76187271,0.00026873,2]
[376851379,1754140260382,-502.28552133,0.00026873,2]
[376851380,1754140260390,-500.0,0.00026873,2]
[376851381,1754140260401,-531.81224926,0.00026873,2]
[376851382,1754140260410,-500.0,0.00026873,2]
[376851383,1754140260420,-500.0,0.00026873,2]
[376851384,1754140260441,-512.58752256,0.00026873,2]
[376851385,1754140260451,-500.0,0.00026873,2]
[376851386,1754140260460,-500.0,0.00026873,2]
[376851387,1754140260469,-502.94869412,0.00026873,2]
[376851388,1754140260479,-500.86348484,0.00026873,2]
[376851389,1754140260488,-500.0,0.00026873,2]
[376851390,1754140260502,-500.0,0.00026873,2]
[376851391,1754140260511,-532.64514499,0.00026873,2]
[376851392,1754140260521,-500.0,0.00026873,2]
[376851393,1754140260530,-500.65994119,0.00026873,2]
[376851394,1754140260539,-502.29650842,0.00026873,2]
[376851395,1754140260548,-151.0,0.00026873,7]
[376851396,1754140260556,-151.0,0.00026873,7]
[376851397,1754140260567,-381.21962013,0.000269,2]
[376851398,1754140260578,-30231.77571873,0.000269,2]
[376851402,1754140594058,1000.0,0.00027,120]
[376851403,1754140596384,160.270484,0.00013699,2]
[376851404,1754140596795,160.270484,0.00022505,2]
[376851406,1754140633426,471.0,0.00027,120]
[376851407,1754140843416,-200.0,0.00027472,120]
[376851408,1754140843442,-200.0,0.00027483,120]
[376851409,1754140843466,-360.47440592,0.000275,120]
[376851410,1754140843489,-152.0,0.000275,120]
[376851411,1754140843513,-87.52559408,0.00027503,120]
[376851412,1754140898997,207.02395077,0.0002298,2]
[376851414,1754141068563,5000.0,0.0002301,2]
[376851415,1754141077127,1097.15192861,0.0002301,2]
[376851419,1754141196149,-172.79345103,0.00024172,2]
[376851423,1754141247090,-213.93443002,0.00024172,2]
[376851424,1754141259270,12705.79423077,0.000229,7]
[376851425,1754141259293,30000.0,0.000229,7]
[376851426,1754141259315,30000.0,0.000229,7]
[376851427,1754141260582,-268.59132988,0.000229,7]
[376851428,1754141262556,-300.9052778,0.000229,7]
[376851429,1754141270241,-189.54589092,0.000229,7]
[376851431,1754141271898,-310.45410908,0.000229,7]
[376851432,1754141275310,-175.65585051,0.000229,7]
[376851433,1754141277558,-357.76800038,0.000229,7]
[376851434,1754141280917,-162.50771689,0.000229,7]
[376851435,1754141284324,5000.0,0.00022511,2]
[376851438,1754141300465,5000.0,0.00022511,2]
[376851439,1754141314114,19789.28629855,0.00017,2]
[376851442,1754141316955,210.71370145,0.00018,2]
[376851444,1754141316977,4316.26430134,0.00018,2]
[376851448,1754141318300,581.2562976,0.000149,2]
[376851449,1754141318560,1000.0,0.0001,2]
[376851450,1754141319274,1698.48764342,0.00018,2]
[376851453,1754141323858,1719.84442236,0.000208,2]
[376851455,1754141326280,12161.0947898,0.00022,4]
[376851458,1754141350105,-5000.0,0.00022571,2]
[376851459,1754141350126,-300.0,0.00022899,2]
[376851460,1754141350149,-3496.603713,0.000229,7]
[376851461,1754141364169,5000.0,0.00022511,2]
[376851462,1754141380312,3523.05254548,0.00022511,2]
[376851463,1754141380335,1476.94745452,0.00022511,2]
[376851492,1754141396562,5000.0,0.00022511,2]
[376851499,1754141405838,269.31943725,0.00022511,2]
[376851500,1754141414724,5000.0,0.00022511,2]
[376851573,1754141432400,5000.0,0.00022511,2]
[376851686,1754141438038,-276.27566588,0.00022877,2]
[376851688,1754141438047,-412.0,0.00022899,2]
[376851689,1754141438057,-300.0,0.00022899,2]
[376851691,1754141438066,-300.0,0.00022899,2]
[376851693,1754141438075,-300.0,0.00022899,2]
[376851695,1754141438084,-300.0,0.00022899,2]
[376851697,1754141438094,-1111.72433412,0.000229,7]
[376851700,1754141438106,-5329.5252097,0.000229,7]
[376851711,1754141438206,-1001.38987973,0.000229,7]
[376851723,1754141438322,-8314.81276238,0.000229,7]
[376851724,1754141438332,-200.0,0.00023357,15]
[376851725,1754141438341,-200.0,0.00023357,15]
[376851726,1754141438351,-200.0,0.00023357,15]
[376851727,1754141438360,-200.0,0.00023357,15]
[376851728,1754141438370,-200.0,0.00023357,15]
[376851729,1754141438379,-24900.0,0.00023388,2]
[376851730,1754141438389,-266.215049,0.00023496,2]
[376851731,1754141438399,-500.0,0.00023631,2]
[376851732,1754141438408,-1023.74008946,0.00024,7]
[376851733,1754141438418,-348.7532556,0.00024172,2]
[376851734,1754141438427,-228.34,0.00024463,10]
[376851735,1754141438436,-190.28,0.00024463,10]
[376851736,1754141438446,-158.57,0.00024463,10]
[376851737,1754141438455,-1200.0,0.0002447,2]
[376851738,1754141438464,-50000.0,0.00024471,2]
[376851739,1754141438474,-2777.47346041,0.00024473,2]
[376851740,1754141438483,-177.62568087,0.00024473,2]
[376851741,1754141438493,-512.02965708,0.000245,3]
[376851742,1754141438501,-253.19298298,0.00024502,2]
[376851743,1754141438511,-360.82,0.00024506,3]
[376851744,1754141438520,-180.41,0.00024506,3]
[376851745,1754141438529,-449.66,0.00024507,3]
[376851746,1754141438539,-541.25,0.00024507,3]
[376851747,1754141438548,-164.042,0.00024515,7]
[376851748,1754141438557,-8217.54,0.00024515,2]
[376851749,1754141438566,-500.0,0.00024516,2]
[376851750,1754141438575,-500.0,0.00024516,2]
[376851751,1754141438585,-500.0,0.00024516,2]
[376851752,1754141438594,-500.0,0.00024516,2]
[376851753,1754141438604,-500.0,0.00024516,2]
[376851754,1754141438613,-500.0,0.00024516,2]
[376851755,1754141438622,-500.0,0.00024516,2]
[376851756,1754141438631,-313.73541075,0.00024516,2]
[376851757,1754141438640,-220.23540611,0.00024516,2]
[376851758,1754141438649,-500.0,0.00024516,2]
[376851759,1754141438660,-500.0,0.00024516,2]
[376851760,1754141438669,-500.0,0.00024516,2]
[376851761,1754141438679,-500.0,0.00024516,2]
[376851762,1754141438689,-396.80431434,0.00024516,2]
[376851763,1754141438698,-500.0,0.00024516,2]
[376851764,1754141438708,-500.0,0.00024516,2]
[376851765,1754141438717,-500.0,0.00024516,2]
[376851766,1754141438892,-500.0,0.00024516,2]
[376851767,1754141438905,-500.0,0.00024516,2]
[376851768,1754141438915,-500.0,0.00024516,2]
[376851769,1754141438925,-500.0,0.00024516,2]
[376851770,1754141438935,-500.0,0.00024516,2]
[376851771,1754141438944,-500.0,0.00024516,2]
[376851772,1754141438954,-500.0,0.00024516,2]
[376851773,1754141438963,-500.0,0.00024516,2]
[376851774,1754141438972,-500.0,0.00024516,2]
[376851775,1754141438983,-500.0,0.00024516,2]
[376851776,1754141438992,-500.0,0.00024516,2]
[376851777,1754141439001,-500.0,0.00024516,2]
[376851778,1754141439010,-500.0,0.00024516,2]
[376851779,1754141439020,-500.0,0.00024516,2]
[376851780,1754141439029,-500.0,0.00024516,2]
[376851781,1754141439039,-500.0,0.00024516,2]
[376851782,1754141439048,-351.1230634,0.00024516,2]
[376851783,1754141439058,-500.0,0.00024516,2]
[376851784,1754141439067,-500.0,0.00024516,2]
[376851785,1754141439076,-387.47677564,0.00024516,2]
[376851786,1754141439086,-500.0,0.00024516,2]
[376851787,1754141439095,-372.5786709,0.00024516,2]
[376851788,1754141439105,-300.0,0.00024516,2]
[376851789,1754141439115,-300.0,0.00024516,2]
[376851790,1754141439125,-500.0,0.00024516,2]
[376851791,1754141439134,-500.0,0.00024516,2]
[376851792,1754141439143,-500.0,0.00024516,2]
[376851793,1754141439153,-500.0,0.00024516,2]
[376851794,1754141439163,-500.0,0.00024516,2]
[376851795,1754141439173,-500.0,0.00024516,2]
[376851796,1754141439184,-601.56463796,0.00024516,2]
[376851797,1754141439195,-500.0,0.00024516,2]
[376851798,1754141439204,-500.0,0.00024516,2]
[376851799,1754141439214,-500.0,0.00024516,2]
[376851800,1754141439223,-500.0,0.00024516,2]
[376851801,1754141439232,-500.0,0.00024516,2]
[376851802,1754141439241,-500.0,0.00024516,2]
[376851803,1754141439251,-500.0,0.00024516,2]
[376851804,1754141439260,-500.0,0.00024516,2]
[376851805,1754141439270,-500.0,0.00024516,2]
[376851806,1754141439281,-500.0,0.00024516,2]
[376851807,1754141439290,-500.0,0.00024516,2]
[376851808,1754141439299,-500.0,0.00024516,2]
[376851809,1754141439309,-500.0,0.00024516,2]
[376851810,1754141439318,-500.0,0.00024516,2]
[376851811,1754141439328,-500.0,0.00024516,2]
[376851812,1754141439338,-500.0,0.00024516,2]
[376851813,1754141439348,-475.7946606,0.00024516,2]
[376851814,1754141439357,-500.0,0.00024516,2]
[376851815,1754141439366,-500.0,0.00024516,2]
[376851816,1754141439376,-500.0,0.00024516,2]
[376851817,1754141439385,-500.0,0.00024516,2]
[376851818,1754141439394,-500.0,0.00024516,2]
[376851819,1754141439403,-500.0,0.00024516,2]
[376851820,1754141439414,-500.0,0.00024516,2]
[376851821,1754141439423,-500.0,0.00024516,2]
[376851822,1754141439433,-400.0,0.00024516,2]
[376851823,1754141439442,-500.0,0.00024516,2]
[376851824,1754141439451,-500.0,0.00024516,2]
[376851825,1754141439461,-500.0,0.00024516,2]
[376851826,1754141439471,-500.0,0.00024516,2]
[376851827,1754141439480,-350.0,0.00024516,2]
[376851828,1754141439489,-500.0,0.00024516,2]
[376851829,1754141439499,-500.0,0.00024516,2]
[376851830,1754141439508,-500.0,0.00024516,2]
[376851831,1754141439518,-500.0,0.00024516,2]
[376851832,1754141439528,-500.0,0.00024516,2]
[376851833,1754141439538,-500.0,0.00024516,2]
[376851834,1754141439547,-500.0,0.00024516,2]
[376851836,1754141439557,-500.0,0.00024516,2]
[376851838,1754141439566,-500.0,0.00024516,2]
[376851840,1754141439576,-500.0,0.00024516,2]
[376851841,1754141439585,-500.0,0.00024516,2]
[376851843,1754141439595,-500.0,0.00024516,2]
[376851846,1754141439605,-500.0,0.00024516,2]
[376851848,1754141439614,-500.0,0.00024516,2]
[376851849,1754141439623,-371.87774318,0.00024516,2]
[376851851,1754141439633,-500.0,0.00024516,2]
[376851853,1754141439643,-500.0,0.00024516,2]
[376851855,1754141439652,-500.0,0.00024516,2]
[376851857,1754141439663,-500.0,0.00024516,2]
[376851859,1754141439672,-500.0,0.00024516,2]
[376851861,1754141439682,-500.0,0.00024516,2]
[376851863,1754141439692,-500.0,0.00024516,2]
[376851865,1754141439708,-500.0,0.00024516,2]
[376851866,1754141439725,-500.0,0.00024516,2]
[376851869,1754141439735,-385.70531031,0.00024516,2]
[376851870,1754141439744,-500.0,0.00024516,2]
[376851871,1754141439753,-500.0,0.00024516,2]
[376851872,1754141439762,-500.0,0.00024516,2]
[376851873,1754141439772,-500.0,0.00024516,2]
[376851874,1754141439782,-500.0,0.00024516,2]
[376851875,1754141439791,-500.0,0.00024516,2]
[376851876,1754141439800,-370000.0,0.00024517,2]